bitfinex-derivatives/quotes_BNBF0:USTF0_20250220
["timestamp","ask_amount","ask_price","bid_price","bid_amount"]
[1740021069913,0.30650871,652.51,651.05,0.30719606]
[1740021070211,0.28182751,652.5,651.05,0.30719606]
[1740021070416,0.3065181,652.49,651.05,0.30719606]
[1740021070613,0.28182751,652.48,651.05,0.30719606]
[1740021071120,0.28181623,652.47,651.05,0.30719606]
[1740021071420,0.58834843,652.46,651.05,0.30719606]
[1740021071719,0.58835312,652.45,651.05,0.30719606]
[1740021071914,0.58835782,652.44,651.05,0.30719606]
[1740021072119,0.58836252,652.43,651.05,0.30719606]
[1740021072319,0.28181623,652.42,651.05,0.30719606]
[1740021073021,0.30655569,652.41,651.05,0.30719606]
[1740021073223,0.28181623,652.4,651.05,0.30719606]
[1740021074216,0.30655569,652.41,651.05,0.30719606]
[1740021141976,0.29272674,652.41,651.05,0.30719606]
[1740021151892,0.29272674,652.41,651.05,0.29415256]
[1740021198730,0.2818864,652.4,651.05,0.29415256]
[1740021198932,0.29272674,652.41,651.05,0.29415256]
[1740021199231,0.30656509,652.39,651.05,0.29415256]
[1740021205238,0.2819136,652.38,651.05,0.29415256]
[1740021205439,0.30656509,652.39,651.05,0.29415256]
[1740021205640,0.30657448,652.37,651.05,0.29415256]
[1740021209240,0.28191712,652.36,651.05,0.29415256]
[1740021209441,0.30658388,652.35,651.05,0.29415256]
[1740021211147,0.28191895,652.34,651.05,0.29415256]
[1740021211347,0.30659328,652.33,651.05,0.29415256]
[1740021215152,0.28193271,652.32,651.05,0.29415256]
[1740021215445,0.30660738,652.3,651.05,0.29415256]
[1740021215652,0.28195253,652.29,651.05,0.29415256]
[1740021215852,0.30662149,652.27,651.05,0.29415256]
[1740021216251,0.28195448,652.26,651.05,0.29415256]
[1740021216447,0.30663089,652.25,651.05,0.29415256]
[1740021306622,1.14682457,652.91,651.05,0.29415256]
[1740021306822,0.30633031,652.89,651.05,0.29415256]
[1740021307219,0.28173997,652.88,651.05,0.29415256]
[1740021307415,0.30634439,652.86,651.05,0.29415256]
[1740021307620,0.28173997,652.85,651.05,0.29415256]
[1740021307918,0.30635847,652.83,651.05,0.29415256]
[1740021308227,0.28173997,652.82,651.05,0.29415256]
[1740021308421,0.30637254,652.8,651.05,0.29415256]
[1740021308624,0.28173997,652.79,651.05,0.29415256]
[1740021308824,0.30638662,652.77,651.05,0.29415256]
[1740021309021,0.28175738,652.76,651.05,0.29415256]
[1740021309228,0.30640071,652.74,651.05,0.29415256]
[1740021309523,0.28175738,652.73,651.05,0.29415256]
[1740021309726,0.30641479,652.71,651.05,0.29415256]
[1740021309927,0.28175738,652.7,651.05,0.29415256]
[1740021310129,0.30642887,652.68,651.05,0.29415256]
[1740021310325,0.28175738,652.67,651.05,0.29415256]
[1740021310526,0.58820838,652.66,651.05,0.29415256]
[1740021310726,0.58821308,652.65,651.05,0.29415256]
[1740021310926,0.28177012,652.64,651.05,0.29415256]
[1740021311122,0.58821777,652.64,651.05,0.29415256]
[1740021311328,0.28177012,652.63,651.05,0.29415256]
[1740021311528,0.30645705,652.62,651.05,0.29415256]
[1740021313530,0.28177511,652.61,651.05,0.29415256]
[1740021314130,0.30646644,652.6,651.05,0.29415256]
[1740021342455,0.28180807,652.59,651.05,0.29415256]
[1740021342853,0.30648053,652.57,651.05,0.29415256]
[1740021343056,0.28182628,652.56,651.05,0.29415256]
[1740021343257,0.30649462,652.54,651.05,0.29415256]
[1740021343556,0.28182628,652.53,651.05,0.29415256]
[1740021343751,0.30650401,652.52,651.05,0.29415256]
[1740021345158,0.28182994,652.51,651.05,0.29415256]
[1740021345359,0.3065134,652.5,651.05,0.29415256]
[1740021348856,0.2818454,652.49,651.05,0.29415256]
[1740021349060,0.3065275,652.47,651.05,0.29415256]
[1740021349259,0.2818454,652.46,651.05,0.29415256]
[1740021349460,0.30653689,652.45,651.05,0.29415256]
[1740021349659,0.28187439,652.44,651.05,0.29415256]
[1740021349855,0.30654629,652.43,651.05,0.29415256]
[1740021350162,0.28187439,652.42,651.05,0.29415256]
[1740021350759,0.30655569,652.41,651.05,0.29415256]
[1740021350961,0.28187439,652.4,651.05,0.29415256]
[1740021351162,0.30656509,652.39,651.05,0.29415256]
[1740021356365,0.28194875,652.38,651.05,0.29415256]
[1740021356563,0.28194875,652.38,650.21,1.37420668]
[1740021356758,0.28194875,652.38,650.91,1.60245587]
[1740021356961,0.28194875,652.38,650.23,0.30758347]
[1740021357364,0.30657918,652.36,650.91,1.60248662]
[1740021357662,0.28194875,652.35,650.23,0.30758347]
[1740021357864,0.30659328,652.33,650.91,1.60250507]
[1740021358060,0.30659328,652.33,650.23,0.30758347]
[1740021358261,0.30659328,652.33,650.91,1.60252351]
[1740021358664,0.30659328,652.33,650.23,0.30758347]
[1740021358964,0.28197951,652.32,650.91,1.60222839]
[1740021359162,0.30660738,652.3,650.23,0.30758347]
[1740021359360,0.30660738,652.3,650.24,1.60265882]
[1740021359561,0.30660738,652.3,650.26,0.30756927]
[1740021360957,0.28198749,652.29,650.26,0.30756927]
[1740021361164,0.30662149,652.27,650.26,0.30756927]
[1740021363666,0.28199405,652.26,650.26,0.30756927]
[1740021365365,0.30663559,652.24,650.26,0.30756927]
[1740021365562,0.28199405,652.23,650.26,0.30756927]
[1740021365766,0.30664969,652.21,650.26,0.30756927]
[1740021365969,0.28199405,652.2,650.26,0.30756927]
[1740021366167,0.30664969,652.21,650.26,0.30756927]
[1740021366468,0.28198159,652.2,650.26,0.30756927]
[1740021366763,0.3066638,652.18,650.26,0.30756927]
[1740021367468,0.28198565,652.17,650.26,0.30756927]
[1740021367665,0.3066732,652.16,650.26,0.30756927]
[1740021373375,0.28199403,652.15,650.26,0.30756927]
[1740021374469,0.3066732,652.16,650.26,0.30756927]
[1740021374670,0.28202807,652.15,650.26,0.30756927]
[1740021374979,0.28202725,652.14,650.26,0.30756927]
[1740021375277,0.30669201,652.12,650.26,0.30756927]
[1740021375471,0.28202725,652.11,650.26,0.30756927]
[1740021375971,0.30669201,652.12,650.26,0.30756927]
[1740021396397,0.30669201,652.12,650.32,1.37420668]
[1740021397297,0.30669201,652.12,650.34,0.30753144]
[1740021398799,0.30669201,652.12,650.34,1.68173812]
[1740021402103,0.30669201,652.12,650.34,0.30753144]
[1740021419215,0.30669201,652.12,650.45,1.37420668]
[1740021419417,0.30669201,652.12,650.47,0.30746998]
[1740021426618,0.28196454,652.11,650.47,0.30746998]
[1740021427120,0.30670142,652.1,650.47,0.30746998]
[1740021427420,0.28196454,652.09,650.47,0.30746998]
[1740021427613,0.30670142,652.1,650.47,0.30746998]
[1740021459639,0.30648053,652.57,650.47,0.30746998]
[1740021459839,0.28197563,652.56,650.47,0.30746998]
[1740021460346,0.3065322,652.46,650.47,0.30746998]
[1740021460645,0.28197563,652.45,650.47,0.30746998]
[1740021461145,0.30654629,652.43,650.47,0.30746998]
[1740021461345,0.28197563,652.42,650.47,0.30746998]
[1740021461647,0.30656039,652.4,650.47,0.30746998]
[1740021461847,0.28197563,652.39,650.47,0.30746998]
[1740021462044,0.30657448,652.37,650.47,0.30746998]
[1740021462247,0.28197563,652.36,650.47,0.30746998]
[1740021463245,0.30658858,652.34,650.47,0.30746998]
[1740021463447,0.28197563,652.33,650.47,0.30746998]
[1740021463740,0.30660268,652.31,650.47,0.30746998]
[1740021463946,0.28197563,652.3,650.47,0.30746998]
[1740021464142,0.30661679,652.28,650.47,0.30746998]
[1740021464544,0.28201063,652.27,650.47,0.30746998]
[1740021464746,0.30663089,652.25,650.47,0.30746998]
[1740021464943,0.28201063,652.24,650.47,0.30746998]
[1740021466047,0.30664499,652.22,650.47,0.30746998]
[1740021466247,0.28199705,652.21,650.47,0.30746998]
[1740021466547,0.3066591,652.19,650.47,0.30746998]
[1740021466747,0.28199705,652.18,650.47,0.30746998]
[1740021467050,0.3066732,652.16,650.47,0.30746998]
[1740021467249,0.28199705,652.15,650.47,0.30746998]
[1740021467648,0.30668261,652.14,650.47,0.30746998]
[1740021470353,0.28200503,652.13,650.47,0.30746998]
[1740021470554,0.30669201,652.12,650.47,0.30746998]
[1740021471051,0.28200563,652.11,650.47,0.30746998]
[1740021471253,0.30670142,652.1,650.47,0.30746998]
[1740021480861,0.28202568,652.09,650.47,0.30746998]
[1740021481062,0.30671083,652.08,650.47,0.30746998]
[1740021481364,0.28202568,652.07,650.47,0.30746998]
[1740021481555,0.30672024,652.06,650.47,0.30746998]
[1740021487670,0.28205361,652.05,650.47,0.30746998]
[1740021487869,0.30672964,652.04,650.47,0.30746998]
[1740021489970,0.28200855,652.03,650.47,0.30746998]
[1740021490170,0.30673905,652.02,650.47,0.30746998]
[1740021513387,0.28201542,652.01,650.47,0.30746998]
[1740021513887,0.28203777,652.0,650.47,0.30746998]
[1740021514085,0.28203777,652.01,650.47,0.30746998]
[1740021514281,0.28203777,652.0,650.47,0.30746998]
[1740021514485,0.30675317,651.99,650.47,0.30746998]
[1740021514687,0.28203777,651.98,650.47,0.30746998]
[1740021514885,0.30676258,651.97,650.47,0.30746998]
[1740021515082,0.28203777,651.96,650.47,0.30746998]
[1740021515286,0.30677199,651.95,650.47,0.30746998]
[1740021515488,0.28203777,651.94,650.47,0.30746998]
[1740021515687,0.3067814,651.93,650.47,0.30746998]
[1740021515886,0.28203777,651.92,650.47,0.30746998]
[1740021516291,0.30679081,651.91,650.47,0.30746998]
[1740021516590,0.28203777,651.9,650.47,0.30746998]
[1740021517090,0.30679081,651.91,650.47,0.30746998]
[1740021562630,0.30679081,651.91,650.47,0.30746998]
[1740021600659,0.28210911,651.9,650.47,0.30746998]
[1740021600859,0.30680493,651.88,650.47,0.30746998]
[1740021601059,0.28210911,651.87,650.47,0.30746998]
[1740021601251,0.30681434,651.86,650.47,0.30746998]
[1740021601854,0.2821415,651.85,650.47,0.30746998]
[1740021602053,0.30682846,651.83,650.47,0.30746998]
[1740021602258,0.2821415,651.82,650.47,0.30746998]
[1740021602558,0.30684258,651.8,650.47,0.30746998]
[1740021602759,0.2821415,651.79,650.47,0.30746998]
[1740021602959,0.306852,651.78,650.47,0.30746998]
[1740021603159,0.2821415,651.77,650.47,0.30746998]
[1740021603458,0.30686142,651.76,650.47,0.30746998]
[1740021603664,0.2821415,651.75,650.47,0.30746998]
[1740021603856,0.30687083,651.74,650.47,0.30746998]
[1740021610858,0.2821414,651.73,650.47,0.30746998]
[1740021611059,0.30688025,651.72,650.47,0.30746998]
[1740021611255,0.2821414,651.71,650.47,0.30746998]
[1740021611459,0.30688967,651.7,650.47,0.30746998]
[1740021611656,0.2821414,651.69,650.47,0.30746998]
[1740021611856,0.30689909,651.68,650.47,0.30746998]
[1740021612057,0.2821414,651.67,650.47,0.30746998]
[1740021612260,0.58908907,651.66,650.47,0.30746998]
[1740021612461,0.58909378,651.65,650.47,0.30746998]
[1740021612662,0.58909849,651.64,650.47,0.30746998]
[1740021612864,0.5891032,651.63,650.47,0.30746998]
[1740021613063,0.58910791,651.62,650.47,0.30746998]
[1740021613259,0.30692735,651.62,650.47,0.30746998]
[1740021718953,1.14614007,652.38,650.47,0.30746998]
[1740021719151,0.30657918,652.36,650.47,0.30746998]
[1740021719347,0.2819976,652.35,650.47,0.30746998]
[1740021719547,0.30659328,652.33,650.47,0.30746998]
[1740021719750,0.2819976,652.32,650.47,0.30746998]
[1740021719948,0.30660738,652.3,650.47,0.30746998]
[1740021720153,0.2819976,652.29,650.47,0.30746998]
[1740021720349,0.30662149,652.27,650.47,0.30746998]
[1740021720548,0.2819976,652.26,650.47,0.30746998]
[1740021720750,0.30663559,652.24,650.47,0.30746998]
[1740021720954,0.2819976,652.23,650.47,0.30746998]
[1740021721153,0.30664969,652.21,650.47,0.30746998]
[1740021721350,0.2819976,652.2,650.47,0.30746998]
[1740021721957,0.3066638,652.18,650.47,0.30746998]
[1740021722251,0.2819976,652.17,650.47,0.30746998]
[1740021722456,0.30667791,652.15,650.47,0.30746998]
[1740021722648,0.2819976,652.14,650.47,0.30746998]
[1740021722850,0.30668731,652.13,650.47,0.30746998]
[1740021723055,0.2819976,652.12,650.47,0.30746998]
[1740021723258,0.30669672,652.11,650.47,0.30746998]
[1740021723458,0.2819976,652.1,650.47,0.30746998]
[1740021723658,0.30670612,652.09,650.47,0.30746998]
[1740021723858,0.2819976,652.08,650.47,0.30746998]
[1740021724157,0.30671553,652.07,650.47,0.30746998]
[1740021724360,0.2819976,652.06,650.47,0.30746998]
[1740021724554,0.30672494,652.05,650.47,0.30746998]
[1740021724755,0.28203579,652.04,650.47,0.30746998]
[1740021724959,0.30673435,652.03,650.47,0.30746998]
[1740021725154,0.28203579,652.02,650.47,0.30746998]
[1740021725355,0.30674376,652.01,650.47,0.30746998]
[1740021725657,0.28203579,652.0,650.47,0.30746998]
[1740021725857,0.30675317,651.99,650.47,0.30746998]
[1740021732062,0.28211718,651.98,650.47,0.30746998]
[1740021732258,0.30676728,651.96,650.47,0.30746998]
[1740021739064,0.2821209,651.95,650.47,0.30746998]
[1740021739467,0.3067814,651.93,650.47,0.30746998]
[1740021739865,0.28212141,651.92,650.47,0.30746998]
[1740021740065,0.30679552,651.9,650.47,0.30746998]
[1740021740289,0.28212141,651.89,650.47,0.30746998]
[1740021740463,0.30680963,651.87,650.47,0.30746998]
[1740021740664,0.28212141,651.86,650.47,0.30746998]
[1740021740859,0.30682376,651.84,650.47,0.30746998]
[1740021741064,0.28212141,651.83,650.47,0.30746998]
[1740021741366,0.30683788,651.81,650.47,0.30746998]
[1740021741564,0.28212141,651.8,650.47,0.30746998]
[1740021741759,0.30684729,651.79,650.47,0.30746998]
[1740021741959,0.28212141,651.78,650.47,0.30746998]
[1740021742264,0.30686142,651.76,650.47,0.30746998]
[1740021742666,0.28212141,651.75,650.47,0.30746998]
[1740021742966,0.30687083,651.74,650.47,0.30746998]
[1740021743368,0.28212141,651.73,650.47,0.30746998]
[1740021743570,0.30688025,651.72,650.47,0.30746998]
[1740021743965,0.282178,651.71,650.47,0.30746998]
[1740021744167,0.30688967,651.7,650.47,0.30746998]
[1740021748271,0.28220316,651.69,650.47,0.30746998]
[1740021748667,0.30688967,651.7,650.47,0.30746998]
[1740021750972,0.28220482,651.69,650.47,0.30746998]
[1740021751172,0.30689909,651.68,650.47,0.30746998]
[1740021753375,0.2822057,651.67,650.47,0.30746998]
[1740021753573,0.30690851,651.66,650.47,0.30746998]
[1740021757972,0.28220619,651.65,650.47,0.30746998]
[1740021758175,0.30691793,651.64,650.47,0.30746998]
[1740021763683,0.28221604,651.63,650.47,0.30746998]
[1740021763883,0.30691793,651.64,650.47,0.30746998]
[1740021764076,0.30692735,651.62,650.47,0.30746998]
[1740021768885,0.30692735,651.62,650.35,1.60357579]
[1740021770989,0.28222946,651.61,650.35,1.60357579]
[1740021771191,0.30693677,651.6,650.35,1.60357579]
[1740021774294,0.28222592,651.59,650.35,1.60357579]
[1740021774493,0.30693677,651.6,650.35,1.60357579]
[1740021774696,0.30694619,651.58,650.35,1.60357579]
[1740021775399,0.30694619,651.58,649.52,1.36925314]
[1740021775600,0.30694619,651.58,650.27,1.60390221]
[1740021775899,0.30694619,651.58,649.62,0.30787229]
[1740021776100,0.30694619,651.58,650.27,1.60388989]
[1740021782601,0.30694619,651.58,650.28,0.30755982]
[1740021790305,1.14614007,652.14,650.28,0.30755982]
[1740021790509,0.30669201,652.12,650.28,0.30755982]
[1740021790703,0.28203863,652.11,650.28,0.30755982]
[1740021790899,0.30670142,652.1,650.28,0.30755982]
[1740021797407,0.2819986,652.09,650.28,0.30755982]
[1740021797610,0.30671083,652.08,650.28,0.30755982]
[1740021800813,0.28201017,652.07,650.28,0.30755982]
[1740021801013,0.30672024,652.06,650.28,0.30755982]
[1740021802411,0.28201187,652.05,650.28,0.30755982]
[1740021802611,0.30673435,652.03,650.28,0.30755982]
[1740021802819,0.28201187,652.02,650.28,0.30755982]
[1740021803015,0.30673435,652.03,650.28,0.30755982]
[1740021803016,0.30674376,652.01,650.28,0.30755982]
[1740021833936,0.30674376,652.01,650.29,1.36925314]
[1740021834344,0.30674376,652.01,650.31,0.30754563]
[1740021844950,0.30674376,652.01,650.39,1.36925314]
[1740021845145,0.30674376,652.01,650.41,0.30749834]
[1740021851150,0.30674376,652.01,650.48,1.36925314]
[1740021851349,0.30674376,652.01,650.5,0.3074558]
[1740021866258,0.30674376,652.01,650.58,1.36925314]
[1740021866460,0.30674376,652.01,650.6,0.30740854]
[1740021867960,1.14614007,652.78,650.6,0.30740854]
[1740021868160,0.30639132,652.76,650.6,0.30740854]
[1740021868360,0.28186671,652.75,650.6,0.30740854]
[1740021868554,0.3064054,652.73,650.6,0.30740854]
[1740021868755,0.28186671,652.72,650.6,0.30740854]
[1740021868955,0.30641948,652.7,650.6,1.67666168]
[1740021869158,0.28186671,652.69,650.6,1.67666168]
[1740021869362,0.30643357,652.67,650.6,1.67666168]
[1740021869555,0.28186671,652.66,650.6,1.67666168]
[1740021869756,0.30644765,652.64,650.6,1.67666168]
[1740021869962,0.28186671,652.63,650.6,1.67666168]
[1740021870162,0.30646174,652.61,650.6,1.67666168]
[1740021870461,0.28186671,652.6,650.6,1.67666168]
[1740021870658,0.30647583,652.58,650.6,1.67666168]
[1740021870958,0.28186671,652.57,650.6,1.67666168]
[1740021871156,0.30648992,652.55,650.6,1.67666168]
[1740021871360,0.28186671,652.54,650.6,1.67666168]
[1740021871557,0.30650401,652.52,650.6,0.30740854]
[1740021871855,0.28186671,652.51,650.6,0.30740854]
[1740021872058,0.3065181,652.49,650.6,0.30740854]
[1740021872260,0.28186671,652.48,650.6,0.30740854]
[1740021872561,0.3065322,652.46,650.6,0.30740854]
[1740021872762,0.28186671,652.45,650.6,0.30740854]
[1740021872957,0.30654629,652.43,650.6,0.30740854]
[1740021873868,0.28191125,652.42,650.6,0.30740854]
[1740021874063,0.30656039,652.4,650.6,0.30740854]
[1740021874262,0.28191125,652.39,650.6,0.30740854]
[1740021875165,0.30657448,652.37,650.6,0.30740854]
[1740021875363,0.28191125,652.36,650.6,0.30740854]
[1740021875559,0.30658388,652.35,650.6,0.30740854]
[1740021875763,0.28191125,652.34,650.6,0.30740854]
[1740021875963,0.30659328,652.33,650.6,0.30740854]
[1740021894281,0.28189838,652.32,650.6,0.30740854]
[1740021894483,0.30660268,652.31,650.6,0.30740854]
[1740021896783,0.28190172,652.3,650.6,0.30740854]
[1740021896985,0.30661208,652.29,650.6,0.30740854]
[1740021897181,0.28190172,652.28,650.6,0.30740854]
[1740021897385,0.30662149,652.27,650.6,0.30740854]
[1740021915591,0.28192657,652.26,650.6,0.30740854]
[1740021915791,0.30663089,652.25,650.6,0.30740854]
[1740021931906,0.2819624,652.24,650.6,0.30740854]
[1740021932107,0.30664499,652.22,650.6,0.30740854]
[1740021935418,0.28197256,652.21,650.6,0.30740854]
[1740021935619,0.3066544,652.2,650.6,0.30740854]
[1740021972244,1.14614007,653.21,650.57,3.02347156]
[1740021972444,0.28176601,653.2,650.57,3.02347156]
[1740021972644,0.28176601,653.19,650.57,3.02347156]
[1740021972840,0.28176601,653.18,650.57,3.02347156]
[1740021973042,0.28176601,653.17,650.57,3.02347156]
[1740021973242,0.28176601,653.16,650.57,3.02347156]
[1740021973439,0.28176601,653.15,650.57,3.02347156]
[1740021973643,0.28176601,653.14,650.57,3.02347156]
[1740021973944,0.28176601,653.13,650.58,2.21840337]
[1740021974144,0.28176601,653.12,650.57,3.02347156]
[1740021974345,0.28176601,653.11,650.57,3.02347156]
[1740021974540,0.28176601,653.1,650.57,3.02347156]
[1740021974741,0.28176601,653.09,650.57,3.02347156]
[1740021974944,1.14614007,653.06,650.58,3.58758641]
[1740021975239,0.28176601,653.05,650.59,5.24180483]
[1740021975441,0.28177395,653.04,650.6,2.21833327]
[1740021975640,0.28177395,653.03,650.6,2.21833327]
[1740021975845,0.28177395,653.02,650.6,2.21833327]
[1740021976046,0.28177395,653.01,650.6,2.21833327]
[1740021976341,0.28177395,653.0,650.6,2.21833327]
[1740021976546,0.28177395,652.99,650.61,3.02347156]
[1740021976747,0.28177395,652.98,650.61,3.02347156]
[1740021976947,0.28177395,652.97,650.62,2.21709678]
[1740021977144,0.28177395,653.05,650.61,3.02347156]
[1740021977341,0.28177395,653.04,650.82,1.36925314]
[1740021977647,0.28177395,653.03,650.82,1.36925314]
[1740021977848,0.28177395,653.02,650.82,1.36925314]
[1740021978049,0.28177395,653.01,650.82,1.36925314]
[1740021978252,0.28177395,653.07,650.82,1.36925314]
[1740021978549,0.28177395,653.06,650.82,1.36925314]
[1740021978750,1.14614007,653.08,650.82,1.36925314]
[1740021979050,0.28174587,653.07,650.82,1.36925314]
[1740021979254,0.28174587,653.06,650.82,1.36925314]
[1740021979450,0.28174587,653.06,650.58,1.6016446]
[1740021979451,0.28174587,653.05,650.75,1.36925314]
[1740021979649,0.28174587,653.17,650.75,1.36925314]
[1740021979845,0.28174587,653.16,650.75,1.36925314]
[1740021980050,0.28174587,653.15,650.75,1.36925314]
[1740021980252,0.28174199,653.14,650.75,1.36925314]
[1740021980444,1.14614007,653.18,650.75,1.36925314]
[1740021980645,0.28173974,653.17,650.75,1.36925314]
[1740021982149,0.28173974,653.17,650.58,2.97089774]
[1740021982346,0.28173974,653.16,650.58,2.97089774]
[1740021982550,0.28173974,653.15,650.58,2.97089774]
[1740021982747,0.28173974,653.14,650.58,2.97089774]
[1740021982947,0.28173974,653.13,650.58,2.97089774]
[1740021983146,0.28173974,653.28,650.58,2.97089774]
[1740021983354,0.28173974,653.27,650.58,2.97089774]
[1740021983651,0.28173974,653.26,650.59,3.01595552]
[1740021984052,0.28173974,653.25,650.59,3.01595552]
[1740021984251,0.28173974,653.24,650.59,3.01595552]
[1740021984452,0.28173974,653.23,650.59,3.01595552]
[1740021984751,0.28173974,653.22,650.58,1.6016446]
[1740021984953,0.28173974,653.26,650.58,1.6016446]
[1740021985253,0.28173974,653.25,650.58,1.6016446]
[1740021985553,0.28173974,653.26,650.58,1.6016446]
[1740021985755,0.28158756,653.25,650.58,1.6016446]
[1740021985953,0.28158756,653.26,650.58,1.6016446]
[1740021986154,1.14614007,653.27,650.58,1.6016446]
[1740021986351,0.28158072,653.26,650.58,1.6016446]
[1740021987454,0.28158072,653.5,650.58,1.6016446]
[1740021987653,0.28158072,653.49,650.58,1.6016446]
[1740021987846,0.28158072,653.48,650.58,1.6016446]
[1740021988051,0.28158072,653.47,650.58,1.6016446]
[1740021988246,0.28158072,653.75,650.58,1.6016446]
[1740021988448,1.14614007,653.76,650.58,1.6016446]
[1740021988449,0.28158072,653.74,650.59,2.20682163]
[1740021988647,1.03161036,653.73,650.6,3.00757803]
[1740021988848,1.03161036,653.72,650.61,2.20682163]
[1740021989047,0.28158072,653.71,650.61,2.20682163]
[1740021989250,0.28158072,653.7,650.6,3.00757803]
[1740021989454,1.14614007,653.57,650.6,3.00757803]
[1740021989656,1.14614007,653.57,650.58,1.6016446]
[1740021989657,0.28158072,653.56,650.59,3.00757803]
[1740021989955,0.28158072,653.55,650.59,3.00757803]
[1740021990154,0.28158072,653.54,650.59,3.00757803]
[1740021990349,1.14614007,653.57,650.59,3.00757803]
[1740021990350,0.28158072,653.53,650.59,3.00757803]
[1740021990550,0.28158072,653.52,650.58,1.6016446]
[1740021990756,0.28158072,653.51,650.58,1.6016446]
[1740021990951,0.28158072,653.5,650.58,1.6016446]
[1740021991153,0.28158072,653.49,650.58,1.6016446]
[1740021991352,0.28158072,653.48,650.58,1.6016446]
[1740021991554,1.14614007,653.25,650.58,1.6016446]
[1740021991750,0.28158072,653.24,650.58,1.6016446]
[1740021991956,0.28158072,653.23,650.58,1.6016446]
[1740021992258,0.28168328,653.22,650.58,1.6016446]
[1740021992457,0.28168328,653.21,650.58,1.6016446]
[1740021992752,0.28168328,653.2,650.58,1.6016446]
[1740021992956,0.28168328,653.19,650.58,1.6016446]
[1740021993257,0.28168328,653.18,650.58,1.6016446]
[1740021993453,0.28168328,653.17,650.58,1.6016446]
[1740021993657,0.28168328,653.16,650.58,1.6016446]
[1740021993859,0.28168328,653.15,650.58,1.6016446]
[1740021994152,0.28168328,653.14,650.61,1.36925314]
[1740021996061,0.28168328,653.26,650.61,1.36925314]
[1740021996257,0.28168328,653.25,650.61,1.36925314]
[1740021996561,1.14614007,653.27,650.61,1.36925314]
[1740021996562,0.28168328,653.24,650.61,1.36925314]
[1740021996758,0.28168328,653.26,650.61,1.36925314]
[1740021996962,1.14614007,653.27,650.58,1.6016446]
[1740021996963,0.28168328,653.25,650.58,1.6016446]
[1740021997163,0.28168636,653.24,650.58,1.6016446]
[1740021997464,0.28168636,653.23,650.58,1.6016446]
[1740021997762,0.28168636,653.22,650.58,1.6016446]
[1740021997957,0.28168636,653.26,650.58,1.6016446]
[1740021998162,0.28168636,653.25,650.58,1.6016446]
[1740021998357,0.28168636,653.26,650.58,1.6016446]
[1740021998561,0.28168636,653.25,650.58,1.6016446]
[1740021998758,0.28170468,653.24,650.58,1.6016446]
[1740021998961,0.28170468,653.23,650.58,1.6016446]
[1740021999161,0.28170468,653.22,650.58,1.6016446]
[1740021999359,0.28170468,653.26,650.58,1.6016446]
[1740021999665,0.28170468,653.25,650.58,1.6016446]
[1740021999864,0.28170468,653.24,650.58,1.6016446]
[1740022000065,0.28170468,653.32,650.58,1.6016446]
[1740022000265,0.28170468,653.31,650.58,1.6016446]
[1740022000565,0.28170468,653.3,650.58,1.6016446]
[1740022000766,0.28170468,653.29,650.58,1.6016446]
[1740022001066,0.28170468,653.28,650.58,1.6016446]
[1740022001366,0.28170468,653.27,650.58,1.6016446]
[1740022001560,0.28170468,653.26,650.58,1.6016446]
[1740022001766,0.28170468,653.25,650.58,1.6016446]
[1740022002067,0.28176066,653.24,650.58,1.6016446]
[1740022002264,0.28176066,653.32,650.58,1.6016446]
[1740022002461,1.14614007,653.33,650.58,1.6016446]
[1740022002462,0.28176066,653.31,650.58,1.6016446]
[1740022002667,0.28176066,653.3,650.58,1.6016446]
[1740022002867,0.28176066,653.29,650.58,1.6016446]
[1740022003062,0.28176066,653.28,650.58,1.6016446]
[1740022003260,0.28176066,653.27,650.58,1.6016446]
[1740022003562,0.28176066,653.26,650.58,1.6016446]
[1740022003763,0.2817758,653.25,650.58,1.6016446]
[1740022003971,1.14614007,653.18,650.58,1.6016446]
[1740022004267,0.2817758,653.17,650.58,1.6016446]
[1740022004567,0.2817758,653.17,650.7,0.3073613]
[1740022004763,0.30625057,653.06,650.7,0.3073613]
[1740022004961,0.2817758,653.05,650.7,0.3073613]
[1740022005164,0.30626464,653.03,650.7,0.3073613]
[1740022005367,0.28169927,653.02,650.7,0.3073613]
[1740022005966,0.30627871,653.0,650.7,0.3073613]
[1740022006161,0.28169927,652.99,650.7,0.3073613]
[1740022006360,0.30629278,652.97,650.7,0.3073613]
[1740022006665,0.28169927,652.96,650.7,0.3073613]
[1740022006865,0.30630685,652.94,650.7,0.3073613]
[1740022008770,0.28170371,652.93,650.7,0.3073613]
[1740022010267,0.30632093,652.91,650.7,0.3073613]
[1740022010467,0.28175305,652.9,650.7,0.3073613]
[1740022010660,0.306335,652.88,650.7,0.3073613]
[1740022010865,0.28175305,652.87,650.7,0.3073613]
[1740022011468,0.30634908,652.85,650.7,0.3073613]
[1740022011663,0.28175305,652.84,650.7,0.3073613]
[1740022011867,0.30636316,652.82,650.7,0.3073613]
[1740022012061,0.28175305,652.81,650.7,0.3073613]
[1740022012265,0.30637724,652.79,650.7,0.3073613]
[1740022012466,0.28175305,652.78,650.7,0.3073613]
[1740022012767,0.30639132,652.76,650.7,0.3073613]
[1740022013066,0.28175305,652.75,650.7,0.3073613]
[1740022013467,0.3064054,652.73,650.7,0.3073613]
[1740022013667,0.28175779,652.72,650.7,0.3073613]
[1740022013861,0.3064054,652.73,650.7,0.3073613]
[1740022015168,0.3064054,652.73,650.7,1.67661444]